[Event "Titled Tuesday Blitz December 13 Early 2022"]
[White "Miszler, Levente"]
[Black "Kim, Sergey"]
[WhiteFideId "763276"]
[BlackFideId "13700570"]
[WhiteElo "2176"]
[BlackElo "2589"]
[Result "0-1"]
[Round "06"]
[TimeControl "180+1"]
[Date "2022.12.14"]
[WhiteClock "0:00:03"]
[BlackClock "0:00:17"]

1. Nf3 {[%clk 0:03:00]}  Nf6 {[%clk 0:02:59]} 2. c4 {[%clk 0:03:00]}  g6 {[%clk 0:02:59]} 3. g3 {[%clk 0:03:01]}  d6 {[%clk 0:02:58]} 4. Bg2 {[%clk 0:03:01]}  Bg7 {[%clk 0:02:58]} 5. O-O {[%clk 0:03:02]}  O-O {[%clk 0:02:58]} 6. Nc3 {[%clk 0:03:03]}  e5 {[%clk 0:02:58]} 7. d3 {[%clk 0:03:03]}  Nh5 {[%clk 0:02:57]} 8. Rb1 {[%clk 0:03:03]}  f5 {[%clk 0:02:57]} 9. Bg5 {[%clk 0:02:59]}  Qe8 {[%clk 0:02:56]} 10. Nd5 {[%clk 0:02:58]}  Rf7 {[%clk 0:02:55]} 11. b4 {[%clk 0:02:52]}  c6 {[%clk 0:02:55]} 12. Qa4 {[%clk 0:02:38]}  Na6 {[%clk 0:02:47]} 13. Rfc1 {[%clk 0:02:30]}  Be6 {[%clk 0:02:42]} 14. Nc3 {[%clk 0:02:28]}  f4 {[%clk 0:02:42]} 15. Ne4 {[%clk 0:02:16]}  Qd7 {[%clk 0:02:38]} 16. b5 {[%clk 0:02:01]}  Nb8 {[%clk 0:02:30]} 17. bxc6 {[%clk 0:01:53]}  Nxc6 {[%clk 0:02:29]} 18. Nfd2 {[%clk 0:01:13]}  h6 {[%clk 0:02:22]} 19. Rxb7 {[%clk 0:01:12]}  Qxb7 {[%clk 0:02:16]} 20. Nxd6 {[%clk 0:01:12]}  Qb2 {[%clk 0:02:16]} 21. Rd1 {[%clk 0:01:05]}  hxg5 {[%clk 0:01:33]} 22. Bxc6 {[%clk 0:00:53]}  Raf8 {[%clk 0:01:32]} 23. Nxf7 {[%clk 0:00:53]}  Bxf7 {[%clk 0:01:27]} 24. Ne4 {[%clk 0:00:49]}  Qxe2 {[%clk 0:01:20]} 25. Nxg5 {[%clk 0:00:45]}  fxg3 {[%clk 0:01:14]} 26. hxg3 {[%clk 0:00:41]}  e4 {[%clk 0:00:55]} 27. Bxe4 {[%clk 0:00:32]}  Bd4 {[%clk 0:00:50]} 28. Rf1 {[%clk 0:00:16]}  Nxg3 {[%clk 0:00:47]} 29. Qd1 {[%clk 0:00:11]}  Bxf2+ {[%clk 0:00:35]} 30. Kg2 {[%clk 0:00:11]}  Qxf1+ {[%clk 0:00:32]} 31. Qxf1 {[%clk 0:00:11]}  Nxf1 {[%clk 0:00:32]} 32. Kxf2 {[%clk 0:00:09]}  Bxc4+ {[%clk 0:00:28]} 33. Ke2 {[%clk 0:00:07]}  Bxa2 {[%clk 0:00:28]} 34. Bxg6 {[%clk 0:00:06]}  Ng3+ {[%clk 0:00:24]} 35. Ke3 {[%clk 0:00:05]}  Nf5+ {[%clk 0:00:24]} 36. Ke4 {[%clk 0:00:06]}  Ne7 {[%clk 0:00:24]} 37. Bh5 {[%clk 0:00:05]}  a5 {[%clk 0:00:23]} 38. Bd1 {[%clk 0:00:04]}  Ra8 {[%clk 0:00:20]} 39. Nf3 {[%clk 0:00:04]}  a4 {[%clk 0:00:20]} 40. Nd4 {[%clk 0:00:04]}  a3 {[%clk 0:00:19]} 41. Ke5 {[%clk 0:00:03]}  Bf7 {[%clk 0:00:19]} 42. Bf3 {[%clk 0:00:03]}  Ra5+ {[%clk 0:00:18]} 43. Kd6 {[%clk 0:00:04]}  a2 {[%clk 0:00:18]} 44. Nc2 {[%clk 0:00:04]}  Nf5+ {[%clk 0:00:17]} 45. Kc6 {[%clk 0:00:03]}  Nd4+ {[%clk 0:00:17]} 0-1


[Site "https://www.chess.com"]

[Event "Titled Tuesday Blitz December 13 Early 2022"]
[White "Nissinen, Niilo Man"]
[Black "Qashashvili, Alexandre"]
[WhiteFideId "30950767"]
[BlackFideId "13600842"]
[WhiteElo "1896"]
[BlackElo "2405"]
[Result "0-1"]
[Round "06"]
[TimeControl "180+1"]
[Date "2022.12.14"]
[WhiteClock "0:00:03"]
[BlackClock "0:00:04"]

1. e4 {[%clk 0:03:00]}  c6 {[%clk 0:02:26]} 2. d4 {[%clk 0:03:00]}  d5 {[%clk 0:02:27]} 3. Nc3 {[%clk 0:02:59]}  dxe4 {[%clk 0:02:26]} 4. Nxe4 {[%clk 0:03:00]}  Nd7 {[%clk 0:02:26]} 5. Ng5 {[%clk 0:02:52]}  Ngf6 {[%clk 0:02:25]} 6. Bc4 {[%clk 0:02:50]}  e6 {[%clk 0:02:25]} 7. Qe2 {[%clk 0:02:44]}  Nb6 {[%clk 0:02:25]} 8. Bb3 {[%clk 0:02:44]}  h6 {[%clk 0:02:24]} 9. N5f3 {[%clk 0:02:40]}  c5 {[%clk 0:02:23]} 10. Be3 {[%clk 0:02:33]}  cxd4 {[%clk 0:02:23]} 11. Bxd4 {[%clk 0:02:33]}  Bd6 {[%clk 0:02:22]} 12. O-O-O {[%clk 0:02:26]}  Qe7 {[%clk 0:02:22]} 13. Qd3 {[%clk 0:02:16]}  O-O {[%clk 0:02:20]} 14. Ne2 {[%clk 0:02:16]}  Bc5 {[%clk 0:02:18]} 15. Bxc5 {[%clk 0:02:13]}  Qxc5 {[%clk 0:02:18]} 16. Qd4 {[%clk 0:02:13]}  Qxd4 {[%clk 0:02:18]} 17. Nexd4 {[%clk 0:02:13]}  Bd7 {[%clk 0:02:18]} 18. Ne5 {[%clk 0:02:11]}  Ba4 {[%clk 0:02:18]} 19. Bxa4 {[%clk 0:01:56]}  Nxa4 {[%clk 0:02:19]} 20. Nb5 {[%clk 0:01:53]}  a6 {[%clk 0:02:18]} 21. Nd6 {[%clk 0:01:50]}  Rab8 {[%clk 0:02:17]} 22. c3 {[%clk 0:01:40]}  Nd5 {[%clk 0:02:09]} 23. Nd7 {[%clk 0:01:33]}  Rfd8 {[%clk 0:02:07]} 24. Nxb8 {[%clk 0:01:33]}  Rxd6 {[%clk 0:02:07]} 25. c4 {[%clk 0:01:32]}  Nab6 {[%clk 0:02:03]} 26. cxd5 {[%clk 0:01:16]}  Nxd5 {[%clk 0:02:02]} 27. Nxa6 {[%clk 0:01:06]}  Rxa6 {[%clk 0:02:00]} 28. a3 {[%clk 0:01:05]}  b5 {[%clk 0:01:23]} 29. Kb1 {[%clk 0:01:02]}  b4 {[%clk 0:01:20]} 30. axb4 {[%clk 0:01:00]}  Rb6 {[%clk 0:01:16]} 31. Rd4 {[%clk 0:00:58]}  g6 {[%clk 0:01:07]} 32. Rc1 {[%clk 0:00:54]}  Nxb4 {[%clk 0:01:02]} 33. Rc8+ {[%clk 0:00:48]}  Kg7 {[%clk 0:01:03]} 34. Rd7 {[%clk 0:00:48]}  Nd5 {[%clk 0:00:56]} 35. Ra8 {[%clk 0:00:31]}  Rb4 {[%clk 0:00:49]} 36. Raa7 {[%clk 0:00:29]}  Rf4 {[%clk 0:00:45]} 37. f3 {[%clk 0:00:26]}  g5 {[%clk 0:00:42]} 38. Rab7 {[%clk 0:00:23]}  h5 {[%clk 0:00:32]} 39. h3 {[%clk 0:00:16]}  Kg6 {[%clk 0:00:30]} 40. Ka2 {[%clk 0:00:15]}  h4 {[%clk 0:00:26]} 41. Ka3 {[%clk 0:00:13]}  Ne3 {[%clk 0:00:22]} 42. b4 {[%clk 0:00:09]}  Nxg2 {[%clk 0:00:19]} 43. b5 {[%clk 0:00:09]}  Rxf3+ {[%clk 0:00:16]} 44. Ka4 {[%clk 0:00:09]}  Rxh3 {[%clk 0:00:12]} 45. Rxf7 {[%clk 0:00:10]}  Rh1 {[%clk 0:00:08]} 46. b6 {[%clk 0:00:08]}  h3 {[%clk 0:00:05]} 47. Rg7+ {[%clk 0:00:08]}  Kf5 {[%clk 0:00:04]} 48. Rbf7+ {[%clk 0:00:07]}  Kg4 {[%clk 0:00:04]} 49. b7 {[%clk 0:00:07]}  Rb1 {[%clk 0:00:04]} 50. Rh7 {[%clk 0:00:04]}  Nh4 {[%clk 0:00:03]} 51. Rf2 {[%clk 0:00:03]}  Kg3 {[%clk 0:00:03]} 52. Ra2 {[%clk 0:00:02]}  h2 {[%clk 0:00:03]} 53. Rxh2 {[%clk 0:00:01]}  Kxh2 {[%clk 0:00:04]} 54. Ka3 {[%clk 0:00:01]}  Kh3 {[%clk 0:00:04]} 55. Ka2 {[%clk 0:00:01]}  Rb6 {[%clk 0:00:05]} 56. Ka3 {[%clk 0:00:02]}  g4 {[%clk 0:00:05]} 57. Ka4 {[%clk 0:00:02]}  g3 {[%clk 0:00:05]} 58. Ka5 {[%clk 0:00:03]}  Rb1 {[%clk 0:00:05]} 59. Ka6 {[%clk 0:00:03]}  g2 {[%clk 0:00:06]} 60. Rg7 {[%clk 0:00:03]}  Kh2 {[%clk 0:00:05]} 61. Rg4 {[%clk 0:00:03]}  g1=Q {[%clk 0:00:04]} 62. Rxh4+ {[%clk 0:00:04]}  Kg3 {[%clk 0:00:04]} 63. Rh6 {[%clk 0:00:03]}  Qb6# {[%clk 0:00:04]} 0-1


[Site "https://www.chess.com"]

[Event "Titled Tuesday Blitz December 13 Early 2022"]
[White "Osinovsky, Stepan"]
[Black "Vianello, Enrico"]
[WhiteFideId "4157354"]
[BlackFideId "810738"]
[WhiteElo "2222"]
[BlackElo "2084"]
[Result "1-0"]
[Round "06"]
[TimeControl "180+1"]
[Date "2022.12.14"]
[WhiteClock "0:00:15"]
[BlackClock "0:00:16"]

1. e4 {[%clk 0:02:55]}  c5 {[%clk 0:02:59]} 2. Nf3 {[%clk 0:02:53]}  e6 {[%clk 0:02:59]} 3. d3 {[%clk 0:02:53]}  b6 {[%clk 0:02:59]} 4. Nbd2 {[%clk 0:02:54]}  Bb7 {[%clk 0:03:00]} 5. g3 {[%clk 0:02:55]}  d6 {[%clk 0:03:00]} 6. Bg2 {[%clk 0:02:55]}  Nd7 {[%clk 0:03:01]} 7. O-O {[%clk 0:02:56]}  Be7 {[%clk 0:03:02]} 8. Re1 {[%clk 0:02:57]}  Ngf6 {[%clk 0:03:02]} 9. h4 {[%clk 0:02:57]}  Qc7 {[%clk 0:03:03]} 10. a4 {[%clk 0:02:58]}  h6 {[%clk 0:03:02]} 11. a5 {[%clk 0:02:58]}  b5 {[%clk 0:03:02]} 12. a6 {[%clk 0:02:58]}  Bc6 {[%clk 0:03:02]} 13. Nf1 {[%clk 0:02:56]}  O-O {[%clk 0:03:00]} 14. c3 {[%clk 0:02:54]}  e5 {[%clk 0:02:59]} 15. Ne3 {[%clk 0:02:49]}  c4 {[%clk 0:02:57]} 16. Nf5 {[%clk 0:02:48]}  Rfe8 {[%clk 0:02:56]} 17. Bxh6 {[%clk 0:02:20]}  Bf8 {[%clk 0:02:55]} 18. Bg5 {[%clk 0:02:07]}  cxd3 {[%clk 0:02:55]} 19. Nd2 {[%clk 0:01:57]}  d5 {[%clk 0:02:47]} 20. h5 {[%clk 0:01:38]}  dxe4 {[%clk 0:02:45]} 21. h6 {[%clk 0:01:35]}  g6 {[%clk 0:02:44]} 22. Ng7 {[%clk 0:01:21]}  Bxg7 {[%clk 0:02:39]} 23. hxg7 {[%clk 0:01:20]}  Kxg7 {[%clk 0:02:40]} 24. Nxe4 {[%clk 0:01:17]}  Nxe4 {[%clk 0:02:37]} 25. Bxe4 {[%clk 0:01:17]}  Bxe4 {[%clk 0:02:37]} 26. Rxe4 {[%clk 0:01:18]}  Nc5 {[%clk 0:02:31]} 27. Rh4 {[%clk 0:01:18]}  Rh8 {[%clk 0:02:30]} 28. Qf3 {[%clk 0:01:09]}  Qd6 {[%clk 0:02:18]} 29. b4 {[%clk 0:00:38]}  Nb3 {[%clk 0:02:08]} 30. Rd1 {[%clk 0:00:34]}  Rxh4 {[%clk 0:01:45]} 31. Qxa8 {[%clk 0:00:32]}  Rh5 {[%clk 0:01:35]} 32. Be3 {[%clk 0:00:32]}  Qd7 {[%clk 0:01:22]} 33. Qb7 {[%clk 0:00:28]}  Qh3 {[%clk 0:01:19]} 34. Rxd3 {[%clk 0:00:28]}  Qh2+ {[%clk 0:01:13]} 35. Kf1 {[%clk 0:00:28]}  Rf5 {[%clk 0:01:09]} 36. Bxa7 {[%clk 0:00:25]}  Nc1 {[%clk 0:01:04]} 37. Rd1 {[%clk 0:00:18]}  Nb3 {[%clk 0:00:48]} 38. Be3 {[%clk 0:00:17]}  Qxg3 {[%clk 0:00:39]} 39. Qe4 {[%clk 0:00:17]}  Qh3+ {[%clk 0:00:34]} 40. Ke2 {[%clk 0:00:17]}  Qh5+ {[%clk 0:00:33]} 41. Ke1 {[%clk 0:00:16]}  Qh8 {[%clk 0:00:21]} 42. a7 {[%clk 0:00:16]}  Rh5 {[%clk 0:00:15]} 43. a8=Q {[%clk 0:00:16]}  Rh1+ {[%clk 0:00:16]} 44. Qxh1 {[%clk 0:00:15]} 1-0


[Site "https://www.chess.com"]

[Event "Titled Tuesday Blitz December 13 Early 2022"]
[White "Osmak, Yuliia"]
[Black "Mikhailovsky, Vladimir"]
[WhiteFideId "14101602"]
[BlackFideId "34105414"]
[WhiteElo "2328"]
[BlackElo "2295"]
[Result "1-0"]
[Round "06"]
[TimeControl "180+1"]
[Date "2022.12.14"]
[WhiteClock "0:00:16"]
[BlackClock "0:00:02"]

1. e4 {[%clk 0:03:00]}  Nf6 {[%clk 0:02:07]} 2. e5 {[%clk 0:02:43]}  Nd5 {[%clk 0:02:06]} 3. d4 {[%clk 0:02:41]}  d6 {[%clk 0:02:06]} 4. c4 {[%clk 0:02:41]}  Nb6 {[%clk 0:02:05]} 5. f4 {[%clk 0:02:42]}  Bf5 {[%clk 0:02:06]} 6. Nf3 {[%clk 0:02:40]}  dxe5 {[%clk 0:02:06]} 7. fxe5 {[%clk 0:02:40]}  e6 {[%clk 0:02:05]} 8. Nc3 {[%clk 0:02:39]}  Bb4 {[%clk 0:01:58]} 9. Be2 {[%clk 0:02:35]}  c5 {[%clk 0:01:58]} 10. a3 {[%clk 0:02:33]}  cxd4 {[%clk 0:01:57]} 11. axb4 {[%clk 0:02:31]}  dxc3 {[%clk 0:01:56]} 12. Qxd8+ {[%clk 0:02:30]}  Kxd8 {[%clk 0:01:57]} 13. bxc3 {[%clk 0:02:29]}  Nc6 {[%clk 0:01:55]} 14. O-O {[%clk 0:02:15]}  Nd7 {[%clk 0:01:20]} 15. Bf4 {[%clk 0:02:08]}  Ke7 {[%clk 0:01:15]} 16. b5 {[%clk 0:02:03]}  Ncb8 {[%clk 0:01:10]} 17. Nd4 {[%clk 0:02:02]}  Be4 {[%clk 0:01:02]} 18. Bg5+ {[%clk 0:01:47]}  f6 {[%clk 0:00:58]} 19. exf6+ {[%clk 0:01:46]}  gxf6 {[%clk 0:00:59]} 20. Bh4 {[%clk 0:01:42]}  Rf8 {[%clk 0:00:53]} 21. Bg4 {[%clk 0:01:28]}  Nc5 {[%clk 0:00:45]} 22. Rae1 {[%clk 0:01:24]}  e5 {[%clk 0:00:34]} 23. Nf5+ {[%clk 0:01:15]}  Bxf5 {[%clk 0:00:26]} 24. Bxf5 {[%clk 0:01:13]}  Nbd7 {[%clk 0:00:26]} 25. Bf2 {[%clk 0:00:48]}  h5 {[%clk 0:00:14]} 26. Ra1 {[%clk 0:00:46]}  a6 {[%clk 0:00:08]} 27. Rfb1 {[%clk 0:00:31]}  axb5 {[%clk 0:00:08]} 28. cxb5 {[%clk 0:00:30]}  Rfc8 {[%clk 0:00:03]} 29. Be3 {[%clk 0:00:18]}  Rxa1 {[%clk 0:00:02]} 30. Rxa1 {[%clk 0:00:17]}  Nb3 {[%clk 0:00:02]} 31. Ra7 {[%clk 0:00:16]}  Rxc3 {[%clk 0:00:01]} 32. Rxb7 {[%clk 0:00:16]}  Rxe3 {[%clk 0:00:01]} 33. Rxd7+ {[%clk 0:00:16]}  Ke8 {[%clk 0:00:02]} 34. Rd1 {[%clk 0:00:16]} 1-0


[Site "https://www.chess.com"]

[Event "Titled Tuesday Blitz December 13 Early 2022"]
[White "Pein, Jonathan"]
[Black "Ambartsumova, Karina"]
[WhiteFideId "417092"]
[BlackFideId "4166299"]
[WhiteElo "2225"]
[BlackElo "2319"]
[Result "1-0"]
[Round "06"]
[TimeControl "180+1"]
[Date "2022.12.14"]
[WhiteClock "0:00:43"]
[BlackClock "0:00:02"]

1. b3 {[%clk 0:03:00]}  e5 {[%clk 0:02:54]} 2. Bb2 {[%clk 0:03:01]}  Nc6 {[%clk 0:02:54]} 3. e3 {[%clk 0:03:01]}  g6 {[%clk 0:02:55]} 4. d4 {[%clk 0:02:57]}  Bg7 {[%clk 0:02:54]} 5. Nf3 {[%clk 0:02:47]}  d6 {[%clk 0:02:51]} 6. Be2 {[%clk 0:02:47]}  Nge7 {[%clk 0:02:50]} 7. c4 {[%clk 0:02:47]}  O-O {[%clk 0:02:49]} 8. Nc3 {[%clk 0:02:47]}  exd4 {[%clk 0:02:47]} 9. Nxd4 {[%clk 0:02:48]}  Nxd4 {[%clk 0:02:47]} 10. exd4 {[%clk 0:02:49]}  d5 {[%clk 0:02:47]} 11. O-O {[%clk 0:02:49]}  dxc4 {[%clk 0:02:45]} 12. bxc4 {[%clk 0:02:50]}  Qxd4 {[%clk 0:02:41]} 13. Qb3 {[%clk 0:02:44]}  Nc6 {[%clk 0:01:52]} 14. Rad1 {[%clk 0:02:42]}  Qe5 {[%clk 0:01:39]} 15. Bd3 {[%clk 0:02:26]}  Nd4 {[%clk 0:01:32]} 16. Qa3 {[%clk 0:02:25]}  c5 {[%clk 0:01:31]} 17. Rfe1 {[%clk 0:02:19]}  Qg5 {[%clk 0:01:27]} 18. Kh1 {[%clk 0:02:12]}  b6 {[%clk 0:01:20]} 19. Be4 {[%clk 0:02:11]}  Rb8 {[%clk 0:01:20]} 20. Qxa7 {[%clk 0:02:10]}  Bg4 {[%clk 0:01:06]} 21. f3 {[%clk 0:02:10]}  Be6 {[%clk 0:01:04]} 22. Bc1 {[%clk 0:02:01]}  Qh4 {[%clk 0:00:58]} 23. Nd5 {[%clk 0:01:55]}  Kh8 {[%clk 0:00:56]} 24. Bf4 {[%clk 0:01:47]}  Ra8 {[%clk 0:00:46]} 25. Qxb6 {[%clk 0:01:47]}  Rxa2 {[%clk 0:00:26]} 26. Bg3 {[%clk 0:01:48]}  Qh5 {[%clk 0:00:21]} 27. Bb1 {[%clk 0:01:44]}  Re2 {[%clk 0:00:19]} 28. Qxc5 {[%clk 0:01:39]}  Rxe1+ {[%clk 0:00:17]} 29. Rxe1 {[%clk 0:01:40]}  Nxf3 {[%clk 0:00:16]} 30. gxf3 {[%clk 0:01:18]}  Qxf3+ {[%clk 0:00:17]} 31. Kg1 {[%clk 0:01:17]}  Rc8 {[%clk 0:00:17]} 32. Qf2 {[%clk 0:01:16]}  Qg4 {[%clk 0:00:17]} 33. Ne3 {[%clk 0:01:11]}  Qh3 {[%clk 0:00:14]} 34. Be4 {[%clk 0:01:09]}  Bd4 {[%clk 0:00:12]} 35. Bg2 {[%clk 0:01:08]}  Qh5 {[%clk 0:00:12]} 36. Qf4 {[%clk 0:01:07]}  Qc5 {[%clk 0:00:11]} 37. Kh1 {[%clk 0:01:04]}  Re8 {[%clk 0:00:10]} 38. Nd5 {[%clk 0:01:03]}  Ra8 {[%clk 0:00:06]} 39. Nf6 {[%clk 0:00:46]}  Ra2 {[%clk 0:00:05]} 40. Ne4 {[%clk 0:00:45]}  Qxc4 {[%clk 0:00:03]} 41. Ng5 {[%clk 0:00:44]}  Qc2 {[%clk 0:00:02]} 42. Qxd4+ {[%clk 0:00:43]} 1-0


[Site "https://www.chess.com"]

[Event "Titled Tuesday Blitz December 13 Early 2022"]
[White "Petrovic, Aleksa"]
[Black "Weetik, Vjacheslav"]
[WhiteFideId "967629"]
[BlackFideId "4153472"]
[WhiteElo "2230"]
[BlackElo "2469"]
[Result "0-1"]
[Round "06"]
[TimeControl "180+1"]
[Date "2022.12.14"]
[WhiteClock "0:00:01"]
[BlackClock "0:00:06"]

1. d4 {[%clk 0:03:00]}  Nf6 {[%clk 0:02:57]} 2. c4 {[%clk 0:03:00]}  g6 {[%clk 0:02:57]} 3. Nc3 {[%clk 0:03:00]}  Bg7 {[%clk 0:02:58]} 4. e4 {[%clk 0:03:00]}  d6 {[%clk 0:02:58]} 5. Be2 {[%clk 0:02:59]}  O-O {[%clk 0:02:58]} 6. Bg5 {[%clk 0:02:58]}  c5 {[%clk 0:02:58]} 7. d5 {[%clk 0:02:58]}  e6 {[%clk 0:02:58]} 8. Nf3 {[%clk 0:02:54]}  h6 {[%clk 0:02:56]} 9. Bf4 {[%clk 0:02:53]}  e5 {[%clk 0:02:42]} 10. Be3 {[%clk 0:02:51]}  Ng4 {[%clk 0:02:42]} 11. Bc1 {[%clk 0:02:50]}  f5 {[%clk 0:02:42]} 12. h3 {[%clk 0:02:48]}  Nf6 {[%clk 0:02:41]} 13. Be3 {[%clk 0:02:39]}  f4 {[%clk 0:02:14]} 14. Bd2 {[%clk 0:02:36]}  g5 {[%clk 0:02:12]} 15. Nh2 {[%clk 0:02:31]}  Qe8 {[%clk 0:02:09]} 16. Ng4 {[%clk 0:02:27]}  Nh7 {[%clk 0:02:08]} 17. Nh2 {[%clk 0:02:21]}  Nf6 {[%clk 0:02:04]} 18. Ng4 {[%clk 0:02:20]}  Nh7 {[%clk 0:02:01]} 19. Nb5 {[%clk 0:02:19]}  Qe7 {[%clk 0:01:49]} 20. a4 {[%clk 0:02:08]}  h5 {[%clk 0:01:47]} 21. Nh2 {[%clk 0:02:07]}  Nf6 {[%clk 0:01:47]} 22. Bxh5 {[%clk 0:01:45]}  Nxe4 {[%clk 0:01:45]} 23. Bg6 {[%clk 0:01:45]}  Nxd2 {[%clk 0:01:23]} 24. Qh5 {[%clk 0:01:33]}  Rf6 {[%clk 0:01:02]} 25. Kxd2 {[%clk 0:01:25]}  Na6 {[%clk 0:00:40]} 26. Nc3 {[%clk 0:01:16]}  e4 {[%clk 0:00:19]} 27. Nxe4 {[%clk 0:01:13]}  Qe5 {[%clk 0:00:19]} 28. Nxf6+ {[%clk 0:00:33]}  Qxf6 {[%clk 0:00:20]} 29. Rhe1 {[%clk 0:00:11]}  Qxb2+ {[%clk 0:00:18]} 30. Bc2 {[%clk 0:00:10]}  Bf5 {[%clk 0:00:17]} 31. Re8+ {[%clk 0:00:08]}  Rxe8 {[%clk 0:00:17]} 32. Qxe8+ {[%clk 0:00:09]}  Bf8 {[%clk 0:00:18]} 33. Rc1 {[%clk 0:00:05]}  Nb4 {[%clk 0:00:17]} 34. Ng4 {[%clk 0:00:04]}  Bxc2 {[%clk 0:00:13]} 35. Nh6+ {[%clk 0:00:04]}  Kh7 {[%clk 0:00:08]} 36. Qf7+ {[%clk 0:00:03]}  Bg7 {[%clk 0:00:08]} 37. Nf5 {[%clk 0:00:02]}  Bxf5+ {[%clk 0:00:08]} 38. Kd1 {[%clk 0:00:02]}  Bd3 {[%clk 0:00:07]} 39. Qh5+ {[%clk 0:00:01]}  Kg8 {[%clk 0:00:07]} 40. Qe8+ {[%clk 0:00:01]}  Bf8 {[%clk 0:00:07]} 41. Qe6+ {[%clk 0:00:01]}  Kg7 {[%clk 0:00:08]} 42. Qd7+ {[%clk 0:00:01]}  Kh8 {[%clk 0:00:07]} 43. Qg4 {[%clk 0:00:01]}  Bh6 {[%clk 0:00:05]} 44. Qc8+ {[%clk 0:00:01]}  Kh7 {[%clk 0:00:06]} 45. Qd7+ {[%clk 0:00:01]}  Bg7 {[%clk 0:00:06]} 0-1


[Site "https://www.chess.com"]

[Event "Titled Tuesday Blitz December 13 Early 2022"]
[White "Remizov, Yaroslav"]
[Black "Mihajlov, Sebastian"]
[WhiteFideId "34134015"]
[BlackFideId "1512110"]
[WhiteElo "2415"]
[BlackElo "2464"]
[Result "1-0"]
[Round "06"]
[TimeControl "180+1"]
[Date "2022.12.14"]
[WhiteClock "0:01:55"]
[BlackClock "0:00:14"]

1. e4 {[%clk 0:03:00]}  e5 {[%clk 0:03:00]} 2. Nc3 {[%clk 0:03:01]}  Nc6 {[%clk 0:03:01]} 3. Nf3 {[%clk 0:03:02]}  Nf6 {[%clk 0:02:59]} 4. Be2 {[%clk 0:03:02]}  Bc5 {[%clk 0:02:59]} 5. Nxe5 {[%clk 0:03:02]}  Nxe5 {[%clk 0:02:52]} 6. d4 {[%clk 0:03:02]}  Bb4 {[%clk 0:02:43]} 7. dxe5 {[%clk 0:03:01]}  Nxe4 {[%clk 0:02:44]} 8. Qd4 {[%clk 0:03:01]}  Nxc3 {[%clk 0:02:39]} 9. bxc3 {[%clk 0:03:02]}  Be7 {[%clk 0:02:39]} 10. Qg4 {[%clk 0:03:02]}  g6 {[%clk 0:02:38]} 11. Bh6 {[%clk 0:03:03]}  d6 {[%clk 0:02:34]} 12. Qg3 {[%clk 0:03:03]}  Be6 {[%clk 0:02:25]} 13. O-O {[%clk 0:03:02]}  Bh4 {[%clk 0:02:20]} 14. Qe3 {[%clk 0:02:58]}  d5 {[%clk 0:01:58]} 15. Rab1 {[%clk 0:02:56]}  Qc8 {[%clk 0:01:47]} 16. Bg7 {[%clk 0:02:54]}  Rg8 {[%clk 0:01:46]} 17. Bf6 {[%clk 0:02:54]}  Bxf6 {[%clk 0:01:46]} 18. exf6 {[%clk 0:02:55]}  c5 {[%clk 0:01:39]} 19. Bb5+ {[%clk 0:02:51]}  Kd8 {[%clk 0:01:38]} 20. Rfd1 {[%clk 0:02:51]}  Qc7 {[%clk 0:01:02]} 21. c4 {[%clk 0:02:51]}  d4 {[%clk 0:01:02]} 22. c3 {[%clk 0:02:52]}  a6 {[%clk 0:00:56]} 23. Ba4 {[%clk 0:02:47]}  Bxc4 {[%clk 0:00:53]} 24. cxd4 {[%clk 0:02:44]}  Kc8 {[%clk 0:00:52]} 25. dxc5 {[%clk 0:02:42]}  Be6 {[%clk 0:00:43]} 26. Rb6 {[%clk 0:02:31]}  Rd8 {[%clk 0:00:42]} 27. Rdb1 {[%clk 0:02:30]}  Bd5 {[%clk 0:00:25]} 28. c6 {[%clk 0:02:23]}  Bxc6 {[%clk 0:00:25]} 29. Bxc6 {[%clk 0:02:23]}  bxc6 {[%clk 0:00:25]} 30. h4 {[%clk 0:01:55]}  Qd6 {[%clk 0:00:14]} 1-0


[Site "https://www.chess.com"]

[Event "Titled Tuesday Blitz December 13 Early 2022"]
[White "Roque Sola, Gisela"]
[Black "Kirillov, Dmitry"]
[WhiteFideId "5120241"]
[BlackFideId "34180572"]
[WhiteElo "1961"]
[BlackElo "2111"]
[Result "0-1"]
[Round "06"]
[TimeControl "180+1"]
[Date "2022.12.14"]
[WhiteClock "0:00:01"]
[BlackClock "0:00:07"]

1. e4 {[%clk 0:03:00]}  c6 {[%clk 0:03:00]} 2. d4 {[%clk 0:02:59]}  d5 {[%clk 0:03:01]} 3. e5 {[%clk 0:02:59]}  c5 {[%clk 0:03:01]} 4. dxc5 {[%clk 0:02:58]}  Nc6 {[%clk 0:03:01]} 5. Nf3 {[%clk 0:02:57]}  Bg4 {[%clk 0:03:00]} 6. Bb5 {[%clk 0:02:44]}  e6 {[%clk 0:02:59]} 7. O-O {[%clk 0:02:40]}  Bxc5 {[%clk 0:02:58]} 8. c3 {[%clk 0:02:32]}  Bxf3 {[%clk 0:02:50]} 9. Qxf3 {[%clk 0:02:31]}  Ne7 {[%clk 0:02:50]} 10. b4 {[%clk 0:02:28]}  Bb6 {[%clk 0:02:48]} 11. Bf4 {[%clk 0:02:22]}  O-O {[%clk 0:02:45]} 12. Na3 {[%clk 0:02:11]}  a5 {[%clk 0:02:36]} 13. Nc2 {[%clk 0:02:04]}  axb4 {[%clk 0:02:29]} 14. Bxc6 {[%clk 0:02:02]}  bxc6 {[%clk 0:02:27]} 15. cxb4 {[%clk 0:01:59]}  Ng6 {[%clk 0:02:20]} 16. a4 {[%clk 0:01:56]}  Bc7 {[%clk 0:02:13]} 17. Rfe1 {[%clk 0:01:53]}  Qb8 {[%clk 0:02:04]} 18. g3 {[%clk 0:00:46]}  Nxe5 {[%clk 0:01:59]} 19. Qc3 {[%clk 0:00:39]}  Nc4 {[%clk 0:01:53]} 20. Bxc7 {[%clk 0:00:38]}  Qxc7 {[%clk 0:01:54]} 21. Nd4 {[%clk 0:00:38]}  Rfb8 {[%clk 0:01:49]} 22. b5 {[%clk 0:00:37]}  cxb5 {[%clk 0:01:40]} 23. axb5 {[%clk 0:00:37]}  Qb6 {[%clk 0:01:34]} 24. Rxa8 {[%clk 0:00:33]}  Rxa8 {[%clk 0:01:35]} 25. Ra1 {[%clk 0:00:33]}  Rxa1+ {[%clk 0:01:17]} 26. Qxa1 {[%clk 0:00:34]}  h6 {[%clk 0:01:17]} 27. Qa8+ {[%clk 0:00:17]}  Kh7 {[%clk 0:01:16]} 28. Nc6 {[%clk 0:00:17]}  Kg6 {[%clk 0:00:39]} 29. Ne7+ {[%clk 0:00:17]}  Kf6 {[%clk 0:00:39]} 30. Ng8+ {[%clk 0:00:15]}  Ke5 {[%clk 0:00:34]} 31. Qe8 {[%clk 0:00:10]}  Qb7 {[%clk 0:00:23]} 32. Ne7 {[%clk 0:00:09]}  Nd6 {[%clk 0:00:20]} 33. Nc6+ {[%clk 0:00:09]}  Ke4 {[%clk 0:00:17]} 34. Qd8 {[%clk 0:00:09]}  Nf5 {[%clk 0:00:10]} 35. Kg2 {[%clk 0:00:07]}  Qxb5 {[%clk 0:00:08]} 36. Qd7 {[%clk 0:00:06]}  Qe2 {[%clk 0:00:07]} 37. Qxf7 {[%clk 0:00:02]}  Ne3+ {[%clk 0:00:07]} 38. Kh3 {[%clk 0:00:01]}  Qg4# {[%clk 0:00:07]} 0-1


[Site "https://www.chess.com"]